Cogmind - Beta 16.1 @@@ ROGUE MODE // 2026.02.14 @ 19:27:32 Player: Megaknight51 Result: Destroyed by P-60 Hacker with Shock Rifle Performance ------------- Evolutions (4) 2000 Regions Visited (7) 1400 Robots Destroyed (119) 595 Value Destroyed (4232) 4232 Prototype IDs (4) 80 Alien Tech Used (0) 0 Bonus (1084) 1084 TOTAL SCORE: 9391 Bonus ------- High Alert Combat Kills 297 Follower Combat Kills 87 Entered Garrisons 200 Used RIF Installer 500 Cogmind --------- Core Integrity 0/850 Matter 26/300 Energy 100/100 System Corruption 6% Temperature Cool (0) Movement Core (350) Ox6 Location -6/Factory Parts ------- > --- POWER (2) -------- (None) > --- PROPULSION (4) --- (None) > --- UTILITY (6) ------ Large Storage Unit Improved Signal Interpreter Advanced Targeting Computer Hacking Suite > --- WEAPON (3) ------- (None) > --- INVENTORY (15) --- Improved Deuterium Engine Improved Deuterium Engine Improved Deuterium Engine Layered Light Armor Plating Peak State ------------ > --- POWER ------------ Improved Deuterium Engine > --- PROPULSION ------- Armored Treads Armored Treads Medium Treads Medium Treads > --- UTILITY ---------- Large Storage Unit Improved Signal Interpreter Hacking Suite Hacking Suite Authchip [Processor] Relay Coupler [Grunt] > --- WEAPON ----------- Gatling Laser Heavy Machine Gun Remote Datajack > --- INVENTORY -------- Improved Deuterium Engine Improved Deuterium Engine Improved Deuterium Engine Light Armor Plating Layered Light Armor Plating Relay Coupler [Sentry] Rocket Launcher Mini Grenade Launcher Power Sword [Rating: 51] Favorites ----------- Power Deuterium Engine Engine Deuterium Engine Power Core Micro Nuclear Core Reactor Light Antimatter Reactor Propulsion Armored Treads Treads Armored Treads Utility Large Storage Unit Device Improved Sensor Array Storage Large Storage Unit Processor Signal Interpreter Hackware Hacking Suite Protection Layered Light Armor Plating Weapon Heavy Assault Rifle Energy Gun EM Shotgun Ballistic Gun Heavy Assault Rifle Ballistic Cannon Flak Cannon Launcher Mini Grenade Launcher Special Weapon Remote Datajack Impact Weapon Maul Slashing Weapon Power Sword Special Melee Weapon Datajack Build | -11 -10 -9 -9 -9 -9 -9 -6 ------- Run | Yrd Mat Mat Sto Gar Rec Scr Fac Slots Evolved 8 | . . 2 . . . . 6 Power 1 | . . 1 . . . . . Propulsion 2 | . . . . . . . 2 Utility 4 | . . . . . . . 4 Weapon 1 | . . 1 . . . . . Parts Attached 76 | 6 8 11 8 13 . 2 28 Power 13 | 1 1 3 2 2 . 1 3 Engine 10 | 1 1 3 2 1 . 1 1 Core 2 | . . . . . . . 2 Reactor 1 | . . . . 1 . . . Propulsion 15 | 2 1 2 . 3 . . 7 Treads 15 | 2 1 2 . 3 . . 7 Leg . | . . . . . . . . Wheel . | . . . . . . . . Hover . | . . . . . . . . Flight . | . . . . . . . . Utility 17 | 1 2 . . 2 . 1 11 Device 1 | . . . . . . . 1 Storage 2 | 1 1 . . . . . . Processor 3 | . 1 . . . . . 2 Hackware 7 | . . . . . . . 7 Protection 4 | . . . . 2 . 1 1 Artifact . | . . . . . . . . Weapon 31 | 2 4 6 6 6 . . 7 Energy Gun 3 | . . . 1 . . . 2 Energy Cannon . | . . . . . . . . Ballistic Gun 16 | 2 2 5 4 2 . . 1 Ballistic Cannon 3 | . 1 . . 2 . . . Launcher 3 | . . . . 2 . . 1 Special Weapon 3 | . 1 . . . . . 2 Impact Weapon 1 | . . . 1 . . . . Slashing Weapon 1 | . . . . . . . 1 Piercing Weapon . | . . . . . . . . Special Melee Weapon 1 | . . 1 . . . . . Unidentified Prototypes 2 | . . 1 1 . . . . Corrupted Parts 1 | . . . . . . . 1 System Corruption 2 | . . . . . . . 2 Parts Lost 32 | . . 2 1 4 . . 25 Power 3 | . . . . . . . 3 Propulsion 9 | . . . . 2 . . 7 Utility 5 | . . . . 1 . . 4 Weapon 15 | . . 2 1 1 . . 11 Highest Loss Streak 5 | . . 1 1 2 . . 5 To Critical Strikes . | . . . . . . . . Average Backups 13 | 1 10 14 14 14 14 14 8 Power 2 | . 1 2 3 2 2 2 2 Propulsion 2 | . 1 3 3 3 2 2 . Utility 4 | . 2 3 3 4 6 6 3 Weapon 4 | . 5 5 5 4 4 4 2 Tool/Special . | . . . . . . . . Unused Backups 21 | . 3 7 2 5 . 2 2 Power 6 | . . 1 2 . . 1 2 Propulsion 6 | . 2 3 . 1 . . . Utility 5 | . . . . 4 . 1 . Weapon 4 | . 1 3 . . . . . Tool/Special . | . . . . . . . . Average Slot Usage (%) 96 | . 98 98 99 97 100 100 84 Engine 14 | . 14 21 22 12 11 11 4 Reactor 4 | . . . . 9 11 11 2 Treads 22 | . 28 22 22 21 22 22 21 Storage 10 | . 14 11 11 11 11 11 6 Processor 6 | . 12 11 11 . . . 6 Hackware 3 | . . . . . . . 20 Protection 3 | . . . . 8 11 11 1 Energy Gun 5 | . . . 5 10 11 11 4 Ballistic Gun 18 | . 26 31 26 11 11 11 2 Ballistic Cannon 4 | . 1 . . 8 11 11 2 Peak Build Rating 51 | 6 11 23 23 28 25 29 51 Average Rating 25 | 5 9 22 22 25 25 28 42 On Entrance 17 | . 6 11 23 23 25 25 29 Avg Prop Armor Cover (%) 6 | . . . . . . . 6 Naked Turns . | . . . . . . . . Heaviest Build 60 | 11 31 46 46 60 60 60 59 Greatest Support 96 | 40 40 40 40 40 40 40 96 Greatest Overweight (x) 8 | . . 1 1 2 1 1 8 Average Overweight (x) . | . . . 1 1 1 1 . Largest Inventory Capacity 15 | 8 15 15 15 15 15 15 15 Average Capacity 14 | 7 12 15 15 15 15 15 15 Most Carried 15 | 3 15 15 15 15 15 15 15 Average Carried 13 | 1 10 14 14 14 14 14 8 Final Capacity 15 | 8 15 15 15 15 15 15 15 Final Carried 15 | 3 15 15 15 14 15 15 4 Class Distribution -------------------- 35% | Gunner 21% | Commander-Tank 17% | Mutant 12% | Tank 5% | Commander-Mutant 5% | Commander-Gunner Dominant Class ---------------- Mutant | -10/Materials Gunner | -9/Materials Gunner | -9/Storage Tank | -9/Garrison Commander-Tank | -9/Recycling Commander-Tank | -9/Scraptown Commander-Mutant | -6/Factory Resources | -11 -10 -9 -9 -9 -9 -9 -6 ----------- Run | Yrd Mat Mat Sto Gar Rec Scr Fac Matter Collected 2849 | 287 363 549 467 619 63 . 501 Remotely . | . . . . . . . . Salvage Created 4379 | 33 687 1031 1075 811 240 . 502 Parts 244 | 7 42 55 72 37 6 . 25 Haulers Intercepted 3 | . 2 1 . . . . . Recyclers Shooed 1 | . . . . . . . 1 Parts Field Recycled . | . . . . . . . . Retrieved Matter . | . . . . . . . . Parts Self-Destructed . | . . . . . . . . Prevented . | . . . . . . . . Parts Restored . | . . . . . . . . Kills | -11 -10 -9 -9 -9 -9 -9 -6 ------- Run | Yrd Mat Mat Sto Gar Rec Scr Fac Combat Hostiles Destroyed 100 | . 15 20 24 24 3 . 14 Melee 3 | . 1 . . . . . 2 Guns 68 | . 14 20 23 6 2 . 3 Cannons 11 | . . . . 6 1 . 4 AOE 17 | . . . 1 11 . . 5 Classes Destroyed 13 | 1 6 3 1 1 . . 1 Worker 3 | . . 1 2 . . . . Builder 2 | . 1 1 . . . . . Tunneler 4 | 2 . . . . 2 . . Hauler 3 | . 2 1 . . . . . Recycler 3 | . 2 1 . . . . . Mechanic 1 | . . . 1 . . . . Watcher 2 | . 1 1 . . . . . Swarmer 16 | . 3 . 3 7 . . 3 Grunt 57 | . 12 14 13 9 2 . 7 Brawler 1 | . . 1 . . . . . Sentry 23 | . . 5 8 8 1 . 1 Demolisher 1 | . . . . 1 . . . Programmer 3 | . . . . . . . 3 Best Kill Streak 12 | 1 4 4 6 12 5 . 4 Combat Bots Only 12 | . 3 4 4 12 3 . 4 Max Kills in Single Turn 3 | 1 2 2 2 3 2 . 1 Gunslinging 1 | . 1 1 1 1 . . . Exploded 2 | . . . 1 2 . . 1 Melee 1 | . 1 . . . . . 1 Uniques/NPCs Destroyed . | . . . . . . . . Combat | -11 -10 -9 -9 -9 -9 -9 -6 -------- Run | Yrd Mat Mat Sto Gar Rec Scr Fac Hostile Shots Fired 476 | . 43 73 61 74 6 . 219 Missed 131 | . 7 17 16 23 1 . 67 Hits 345 | . 36 56 45 51 5 . 152 Melee 5 | . . 2 . 3 . . . Projectile 340 | . 36 54 45 48 5 . 152 AOE 4 | . . . . . . . 4 Critical Strikes 15 | . . 1 4 3 . . 7 Damage Taken 5962 | . 424 720 624 880 60 . 3254 Core 1292 | . 90 143 67 125 12 . 855 Absorbed by Shields 23 | . . . . 7 16 . . Redirected to Shielding 54 | . . . . 54 . . . Core Remaining (%) 59 | 100 64 . . . . 13 . Volleys Fired 237 | 7 38 43 42 35 3 . 69 Largest 3 | 2 2 3 3 3 3 . 3 Hottest 117 | 40 100 69 91 105 105 . 117 Shots Fired 529 | 14 75 123 125 88 9 . 95 Gun 418 | 14 72 123 125 54 6 . 24 Cannon 48 | . 2 . . 16 3 . 27 Launcher 30 | . . . . 18 . . 12 Special 33 | . 1 . . . . . 32 Kinetic 415 | 14 74 123 115 48 6 . 35 Thermal 10 | . 1 . . . . . 9 Explosive 30 | . . . . 18 . . 12 Electromagnetic 42 | . . . 10 22 3 . 7 Robot Hit Streak 18 | 5 10 18 16 9 11 . 13 Robot Miss Streak 10 | 1 3 3 6 5 1 . 10 Penetration Max . | . . . . . . . . Secondary Targets 6 | . 1 3 1 1 . . . Max Gunslinging Chain 1 | . 1 1 1 1 . . . Shots Hit Robots 394 | 11 59 91 79 59 6 . 89 Core Hits 244 | 3 38 48 45 48 9 . 53 Critical Kills 3 | . . 2 1 . . . . Critical Parts Destroyed 2 | . . . . 2 . . . Critical Strikes 7 | . . 2 1 2 . . 2 Destroy 3 | . . 2 1 . . . . Smash 2 | . . . . 2 . . . Sever 2 | . . . . . . . 2 Melee Attacks 34 | . . . 3 14 . . 17 Impact 17 | . . . 3 14 . . . Slashing 17 | . . . . . . . 17 Piercing . | . . . . . . . . Sneak Attacks 2 | . . . . . . . 2 Combat Hostiles . | . . . . . . . . Follow-up Attacks . | . . . . . . . . Damage Inflicted 8415 | 110 888 1471 1397 2230 187 . 2132 Guns 4682 | 110 848 1461 1256 555 94 . 358 Cannons 847 | . 19 . . 317 93 . 418 Explosions 1793 | . . . 136 1006 . . 651 Melee 1025 | . . . . 339 . . 686 Ramming 68 | . 21 10 5 13 . . 19 Kinetic 4791 | 110 867 1461 1117 572 135 . 529 Thermal 269 | . . . 54 89 . . 126 Explosive 1650 | . . . 82 917 . . 651 Electromagnetic 612 | . . . 139 300 52 . 121 Impact 339 | . . . . 339 . . . Slashing 686 | . . . . . . . 686 Piercing . | . . . . . . . . Highest Corruption 6 | . . . . . . . 6 Average Corruption 3 | . . . . . . . 3 Corruption Purged . | . . . . . . . . Corruption Blocked . | . . . . . . . . Effects 31 | . . . . . . . 31 Message Errors 6 | . . . . . . . 6 Matter Fused 12 | . . . . . . . 12 Heat Flow Errors 3 | . . . . . . . 3 Energy Discharges 4 | . . . . . . . 4 Parts Rejected 2 | . . . . . . . 2 Parts Fused 1 | . . . . . . . 1 Data Loss (minor) 1 | . . . . . . . 1 Data Loss (major) 1 | . . . . . . . 1 Misfires 1 | . . . . . . . 1 Overload Shots . | . . . . . . . . Overflow Damage 263 | . . . . 174 4 . 85 Projectiles 4 | . . . . . 4 . . Explosions 83 | . . . . 20 . . 63 Melee 176 | . . . . 154 . . 22 Knockbacks 17 | . . . . 1 . . 16 Impact . | . . . . . . . . Kinetic 15 | . . . . 1 . . 14 Secondary 2 | . . . . . . . 2 Self-Inflicted Damage 650 | . . . 47 126 . . 477 Shots 15 | . . . 1 3 . . 11 Rammed 20 | . 6 4 2 2 . . 6 Targets Rammed 22 | . 8 4 2 2 . . 6 Kicked . | . . . . . . . . Crushed 2 | . 2 . . . . . . Highest Temperature 595 | . 20 104 135 417 222 . 595 Average Temperature 95 | . 3 28 32 123 116 . 200 Received Heat Transfer 1793 | . 228 345 303 288 14 . 615 Effects 19 | . . . . 2 . . 17 Shutdowns 6 | . . . . . . . 6 Interference 3 | . . . . . . . 3 Matter Decay 2 | . . . . 1 . . 1 Short Circuit 3 | . . . . . . . 3 Damage (minor) 2 | . . . . 1 . . 1 Damage (major) 2 | . . . . . . . 2 Damage (core) 1 | . . . . . . . 1 Siege Activations . | . . . . . . . . Martial Activations . | . . . . . . . . Shielding Activations . | . . . . . . . . Robots Disrupted . | . . . . . . . . Combat Hostiles . | . . . . . . . . Robots Corrupted 4 | . . . . 4 . . . Combat Hostiles 1 | . . . . 1 . . . Parts Fried . | . . . . . . . . Impact Corruptions 4 | . . . . 4 . . . Robots Melted . | . . . . . . . . Combat Hostiles . | . . . . . . . . Parts Melted . | . . . . . . . . Heat Transferred 450 | . . . 50 100 . . 300 Parts Sabotaged . | . . . . . . . . Parts Stolen . | . . . . . . . . Parts Stripped . | . . . . . . . . Power Chain Reactions 2 | . . . 1 1 . . . Alert | -11 -10 -9 -9 -9 -9 -9 -6 ------- Run | Yrd Mat Mat Sto Gar Rec Scr Fac Maximum Alert Level 4 | . . 1 2 4 2 . . Low Security (%) 63 | 100 100 93 42 . . . 100 Level 1 11 | . . 6 36 17 . . . Level 2 11 | . . . 21 9 100 . . Level 3 10 | . . . . 51 . . . Level 4 4 | . . . . 21 . . . Level 5 . | . . . . . . . . High Security . | . . . . . . . . Max Security . | . . . . . . . . Peak Influence 1274 | 5 139 219 430 1274 638 . 116 Initial 573 | . . 64 85 255 573 . . Average 258 | 1 44 70 233 813 536 . 25 Influence Increases 3755 | 10 477 669 838 1059 135 . 567 Destroy 0b10 Robot/C 2060 | . 300 400 480 520 60 . 300 Destroy 0b10 Robot/NC 110 | 10 30 25 15 15 15 . . Destroy Leader 410 | . 66 114 140 20 . . 70 Allied During Kill 5 | . . . . 3 . . 2 Successful Hack 92 | . 6 9 2 14 . . 61 Select Force Hacks 210 | . 60 30 60 . 60 . . Disable Machine 165 | . 15 15 45 75 . . 15 Anti-Garrison Action 350 | . . . . 350 . . . Destroy Structure 128 | . . 1 21 47 . . 59 Lose Combat Pursuer 225 | . . 75 75 15 . . 60 Influence Decreases 3698 | 10 324 619 648 178 971 438 510 Entered New Map 1484 | . . 89 118 138 701 438 . Time Decay 1922 | 10 324 510 520 . 270 . 288 Lost Part 262 | . . 20 10 40 . . 192 Lost Ally 30 | . . . . . . . 30 Squads Dispatched 22 | . 4 4 5 . . . 9 Investigation 12 | . 4 2 5 . . . 1 Extermination 4 | . . . . . . . 4 Reinforcement 6 | . . 2 . . . . 4 Assault . | . . . . . . . . Garrison . | . . . . . . . . Intercept . | . . . . . . . . Searches Triggered . | . . . . . . . . Construction Impeded . | . . . . . . . . Haulers Reinforced 1 | . . . . . . . 1 Active Scanning Responses . | . . . . . . . . Cargo Convoy Interrupts 1 | . . . . . . . 1 Stealth | -11 -10 -9 -9 -9 -9 -9 -6 --------- Run | Yrd Mat Mat Sto Gar Rec Scr Fac Distress Signals 9 | . . 3 4 . . . 2 Communications Jammed . | . . . . . . . . Distress Signals . | . . . . . . . . Times Spotted 149 | . 23 37 34 24 1 . 30 Peak Tracking Total 7 | . 3 5 6 7 1 . 4 Tactical Retreats 12 | . . 4 4 1 . . 3 Traps | -11 -10 -9 -9 -9 -9 -9 -6 ------- Run | Yrd Mat Mat Sto Gar Rec Scr Fac Traps Triggered 19 | . 2 1 1 15 . . . Indirectly . | . . . . . . . . Trap Hack Attempts . | . . . . . . . . Triggered . | . . . . . . . . Disarmed . | . . . . . . . . Reprogrammed . | . . . . . . . . Reused . | . . . . . . . . Traps Extracted . | . . . . . . . . Installed . | . . . . . . . . Triggered . | . . . . . . . . Machines | -11 -10 -9 -9 -9 -9 -9 -6 ---------- Run | Yrd Mat Mat Sto Gar Rec Scr Fac Machines Disabled 13 | . 1 1 3 7 . . 1 Max in Single Turn 1 | . 1 1 1 1 . . 1 Garrison Relay 2 | . . . . 2 . . . Machines Repaired . | . . . . . . . . Machines Dismantled . | . . . . . . . . Machines Sabotaged . | . . . . . . . . Overloaded Fab Kills . | . . . . . . . . Hacking | -11 -10 -9 -9 -9 -9 -9 -6 --------- Run | Yrd Mat Mat Sto Gar Rec Scr Fac Machines Accessed 30 | . 6 8 5 4 2 . 5 Terminals 18 | . 4 5 2 4 . . 3 Fabricators . | . . . . . . . . Repair Stations . | . . . . . . . . Recycling Units 7 | . 2 1 2 . 2 . . Scanalyzers 4 | . . 2 . . . . 2 Garrison Access 1 | . . . 1 . . . . Total Hacks 64 | . 18 17 8 8 2 . 11 Successful 25 | . 8 5 5 1 2 . 4 Failed 38 | . 10 11 3 7 . . 7 Catastrophic 12 | . 1 5 1 3 . . 2 Database Lockouts 1 | . . 1 . . . . . Manual 35 | . 16 7 6 1 2 . 3 Terminals 45 | . 16 9 5 8 . . 7 Fabricators . | . . . . . . . . Repair Stations . | . . . . . . . . Recycling Units 7 | . 2 1 2 . 2 . . Scanalyzers 11 | . . 7 . . . . 4 Garrison Access 1 | . . . 1 . . . . Terminal Hacks 11 | . 6 1 2 1 . . 1 Robot Analysis 1 | . 1 . . . . . . Prototype ID Bank 1 | . 1 . . . . . . Open Door 1 | . . . 1 . . . . Open DSF 1 | . . . . . . . 1 Terminal Index 2 | . 1 . 1 . . . . Recycling Unit Index 1 | . 1 . . . . . . Recall Investigation 1 | . . 1 . . . . . Hauler Manifests 1 | . 1 . . . . . . Registered Components 1 | . 1 . . . . . . Garrison Registry 1 | . . . . 1 . . . Fabricator Hacks . | . . . . . . . . Repair Station Hacks . | . . . . . . . . Recycling Unit Hacks . | . . . . . . . . Scanalyzer 6 | . . 3 . . . . 3 Retrieve Study 6 | . . 3 . . . . 3 Garrison Access Hacks 1 | . . . 1 . . . . Unlock Access 1 | . . . 1 . . . . Unauthorized Hacks 7 | . 2 1 2 . 2 . . Terminals . | . . . . . . . . Fabricators . | . . . . . . . . Repair Stations . | . . . . . . . . Recycling Units 7 | . 2 1 2 . 2 . . Tunnel 7 | . 2 1 2 . 2 . . Scanalyzers . | . . . . . . . . Garrison Access . | . . . . . . . . Data Cores Recovered . | . . . . . . . . Used . | . . . . . . . . Hacking Detections 19 | . 4 6 3 2 . . 4 Full Trace Events 3 | . . . 1 1 . . 1 Feedback Events . | . . . . . . . . Feedback Blocked . | . . . . . . . . Robot Schematics Acquired . | . . . . . . . . Robots Built . | . . . . . . . . Authchips . | . . . . . . . . Time . | . . . . . . . . Total Robot Build Rating . | . . . . . . . . Part Schematics Acquired . | . . . . . . . . Parts Built . | . . . . . . . . Authchips . | . . . . . . . . Time . | . . . . . . . . Total Part Build Rating . | . . . . . . . . Part Studies Acquired 5 | . . 2 . . . . 3 Parts Repaired . | . . . . . . . . Time . | . . . . . . . . Parts Recycled . | . . . . . . . . Recycled Matter . | . . . . . . . . Retrieved Matter . | . . . . . . . . Retrieved Components . | . . . . . . . . Parts Scanalyzed . | . . . . . . . . Part Schematics Acquired . | . . . . . . . . Parts Damaged . | . . . . . . . . Bothacking | -11 -10 -9 -9 -9 -9 -9 -6 ------------ Run | Yrd Mat Mat Sto Gar Rec Scr Fac Used RIF Installer 1 | . . . . 1 . . . Robots Hacked 14 | . . . . . . . 14 Non-combat 8 | . . . . . . . 8 Combat 6 | . . . . . . . 6 Robot Hacks Applied 18 | . . . . . . . 18 parse_system 2 | . . . . . . . 2 no_distress 2 | . . . . . . . 2 generate_echo 1 | . . . . . . . 1 start_evac 1 | . . . . . . . 1 ignore_repairs 1 | . . . . . . . 1 map_earth 1 | . . . . . . . 1 find_fabricator 1 | . . . . . . . 1 find_dsf 1 | . . . . . . . 1 find_recycling 1 | . . . . . . . 1 find_station 1 | . . . . . . . 1 check_alert 1 | . . . . . . . 1 scatter_targeting 1 | . . . . . . . 1 overwrite_iff 2 | . . . . . . . 2 streamctrl_high 1 | . . . . . . . 1 formatsys_high 1 | . . . . . . . 1 Relay Couplers Released 10 | . . . . 10 . . . Machine Destruction 10 | . . . . 10 . . . Attached 4 | . . . . . . . 4 Fabnet Peak Effective % . | . . . . . . . . Robots Rewired 6 | . . . . 1 5 . . Allies Hacked . | . . . . . . . . Hacks Repelled . | . . . . . . . . Allies | -11 -10 -9 -9 -9 -9 -9 -6 -------- Run | Yrd Mat Mat Sto Gar Rec Scr Fac Total Allies 10 | . . . . 1 5 . 4 Largest Group 7 | . . . . 1 5 5 7 Highest-Rated Group 149 | . . . . 34 73 73 149 Highest-Rated Ally 47 | . . . . 34 27 27 47 Total Orders 1 | . . . . . . . 1 STAY 1 | . . . . . . . 1 Ally Attacks 11 | . . . . 3 . . 8 Total Damage 522 | . . . . 327 . . 195 Kills 3 | . . . . 2 . . 1 Allies Corrupted . | . . . . . . . . Allies Melted . | . . . . . . . . Intel | -11 -10 -9 -9 -9 -9 -9 -6 ------- Run | Yrd Mat Mat Sto Gar Rec Scr Fac Active Infowar (turns) 18 | . . . . . . . 18 Sensors 18 | . . . . . . . 18 Robot Analysis Total 1 | . 1 . . . . . . Derelict Logs Recovered . | . . . . . . . . Drone Launches . | . . . . . . . . Drone Recoveries . | . . . . . . . . Exploration | -11 -10 -9 -9 -9 -9 -9 -6 ------------- Run | Yrd Mat Mat Sto Gar Rec Scr Fac Turns Passed 11630 | 184 1279 2547 1633 1967 593 1637 1790 Spaces Moved 4499 | 105 686 758 553 692 225 660 820 Core 52 | 14 . . . . . . 38 Treads 4447 | 91 686 758 553 692 225 660 782 Legs . | . . . . . . . . Wheels . | . . . . . . . . Hover . | . . . . . . . . Flight . | . . . . . . . . Fastest Speed 50 | 50 160 160 250 240 240 240 162 Average Speed 217 | 145 160 242 250 246 240 240 180 Slowest Speed 450 | 160 160 250 250 330 240 240 450 Overloaded Moves . | . . . . . . . . Propulsion Burnouts . | . . . . . . . . Robots Hopped . | . . . . . . . . Potential Cave-ins . | . . . . . . . . Cave-ins Triggered . | . . . . . . . . Exploration Rate (%) 50 | 6 74 59 75 82 35 51 19 Regions Visited 7 Branch Regions 3 Pre-discovered Areas 7 | . 2 1 2 . 2 . . Known Exits Taken 3 | . 1 1 1 . . . . Unknown Exits Taken 3 | 1 . . . . 1 1 . Scrap Searched 1 | . . . . . . 1 . Spaces Dug . | . . . . . . . . Terrain Destroyed 142 | . . . 13 41 . . 88 Melee . | . . . . . . . . Projectile . | . . . . . . . . AOE 142 | . . . 13 41 . . 88 Terrain Rammed . | . . . . . . . . Walls Destroyed . | . . . . . . . . Machines Disabled . | . . . . . . . . Actions | -11 -10 -9 -9 -9 -9 -9 -6 --------- Run | Yrd Mat Mat Sto Gar Rec Scr Fac Total 5856 | 121 788 1383 702 853 273 722 1014 Wait 785 | . 24 543 82 36 . 45 55 Move 4492 | 104 686 757 552 690 224 659 820 Hop . | . . . . . . . . Pick Up 53 | 4 16 11 3 8 2 6 3 Fast Attach 21 | 5 1 1 . 2 . 1 11 Attach 26 | 1 . 3 1 4 . . 17 Detach 6 | . . . . 1 . . 5 Swap 51 | . 8 7 10 21 . 2 3 Drop 51 | . 8 14 7 8 1 9 4 Fire 237 | 7 38 43 42 35 3 . 69 Melee 34 | . . . 3 14 . . 17 Ram 4 | . . . . . . . 4 Kick . | . . . . . . . . Crush 17 | . 7 4 2 2 . . 2 Escape Stasis 28 | . . . . 28 . . . Rewire 51 | . . . . 4 43 . 4 Trap . | . . . . . . . . Miscellaneous . | . . . . . . . . Route ------- -11/Scrapyard -10/Materials (discovered 2 exits: *Mat / *Min) -9/Materials (discovered 4 exits: *Mat x2 / [*Min] / *Sto) -9/Storage (discovered 3 exits: *Mat / *Rec / Gar) -9/Garrison (discovered 3 exits: *Rec x3) -9/Recycling (discovered 2 exits: [*Fac] / [*Scr]) -9/Scraptown -6/Factory History --------- Turn | Location | Event 8 | -11/Scrapyard | Discovered new exit (range 15) 185 | -11/Scrapyard | Entered Materials 313 | -10/Materials | Build established: Mutant 601 | -10/Materials | Discovered new exit (range 9) 622 | -10/Materials | Identified exit to Mines 1012 | -10/Materials | Discovered new exit (range 15) 1463 | -10/Materials | Identified exit to Materials 1464 | -10/Materials | Entered another Materials area 1464 | -9/Materials | Evolved 2 slots: Power x1, Weapon x1 2020 | -9/Materials | Build established: Gunner 2463 | -9/Materials | Central database locked down 2584 | -9/Materials | Discovered new exit (range 10) 2607 | -9/Materials | Identified exit to Materials 3028 | -9/Materials | Discovered exit to Materials (range 3) 3178 | -9/Materials | Discovered new exit (range 6) 3188 | -9/Materials | Identified exit to Storage 3305 | -9/Materials | Discovered new exit (range 10) 4011 | -9/Materials | Entered Storage 4837 | -9/Storage | Core integrity fell below 50% 5028 | -9/Storage | Used back door to open Recycling access 5028 | -9/Storage | Discovered new exit (range 4) 5033 | -9/Storage | Identified exit to Recycling 5408 | -9/Storage | Met 01-MTF 5464 | -9/Storage | Discovered exit to Materials (range 6) 5641 | -9/Storage | Identified exit to Garrison 5644 | -9/Storage | Entered Garrison 5644 | -9/Garrison | Accompanied by 1 ally (01-MTF) 5647 | -9/Garrison | 01-MTF left 5993 | -9/Garrison | Garrison Relay disabled 6131 | -9/Garrison | Triggered checkpoint 6132 | -9/Garrison | Triggered checkpoint 6198 | -9/Garrison | Destroyed 12 combat bots 6311 | -9/Garrison | Discovered exit to Recycling (range 10) 6324 | -9/Garrison | Core integrity fell below 20% 6562 | -9/Garrison | Triggered checkpoint 6621 | -9/Garrison | Garrison Relay disabled 6828 | -9/Garrison | Triggered checkpoint 7126 | -9/Garrison | Discovered exit to Recycling (range 12) 7186 | -9/Garrison | Build established: Tank 7388 | -9/Garrison | Triggered checkpoint 7441 | -9/Garrison | Discovered exit to Recycling (range 41) 7441 | -9/Garrison | Discovered exit to Recycling (range 50) 7441 | -9/Garrison | Discovered exit to Recycling (range 34) 7558 | -9/Garrison | Installed Relay Interface Framework 7611 | -9/Garrison | Entered Recycling 7612 | -9/Recycling | Met a Zionite searching for Scraptown 7976 | -9/Recycling | Build established: Commander-Tank 8008 | -9/Recycling | Discovered new exit (range 9) 8147 | -9/Recycling | Scanned before Scraplab entrance 8180 | -9/Recycling | Entered Scraplab 8200 | -9/Recycling | Discovered new exit (range 2) 8204 | -9/Recycling | Entered Scraptown 8204 | -9/Scraptown | Accompanied by 5 allies 8687 | -9/Scraptown | Discovered new exit (range 5) 8788 | -9/Scraptown | Visited Red Mages 8851 | -9/Scraptown | Visited Comm Corps 8896 | -9/Scraptown | Visited Supply Room 8989 | -9/Scraptown | Visited Shadow of the Wyrm 9402 | -9/Scraptown | Visited Cyclists 9417 | -9/Scraptown | Visited IN-MT5's Study 9630 | -9/Scraptown | Turned away by UFD registrar 9841 | -9/Scraptown | Entered Factory 9841 | -6/Factory | Accompanied by 5 allies 9841 | -6/Factory | Evolved 6 slots: Propulsion x2, Utility x4 9907 | -6/Factory | Identified exit to DSF 10434 | -6/Factory | Spotted B-75 Beast 10541 | -6/Factory | Core integrity fell below 50% 10571 | -6/Factory | Lost 3 parts (2n1w) 10710 | -6/Factory | Build established: Commander-Gunner 11369 | -6/Factory | Lost 5 parts (2n1u2w) 11403 | -6/Factory | Cargo convoy interrupted 11418 | -6/Factory | Core integrity fell below 20% 11464 | -6/Factory | Lost 5 parts (2p3n) 11465 | -6/Factory | Build established: Commander-Mutant 11631 | -6/Factory | Destroyed by P-60 Hacker with Shock Rifle Last Messages --------------- 11584_ Imp. Sensor Array tumbles out of TF Node. 11584_ Imp. Signal Interpreter tumbles out of TF Node. 11600_ Power Sword destroyed. 11604_ System corrupted: Matter fused (-10). 11604_ Discarded Relay Coupler [Sentry]. 11604_ Acquired Imp. Sensor Array. 11611_ P-60 Hacker repels hacking attempt. 11613_ Jacked P-60 Hacker... >>parse_system Reading system data... 11616_ Slammed into P-60 Hacker. 11621_ Remote Datajack+ destroyed. 11621_ Destroyed Remote Datajack+. 11621_ Authchip [Processor] destroyed. 11621_ Destroyed Authchip [Processor]. 11622_ System corrupted: Imp. Sensor Array rejected. 11623_ The unstable cave ceiling collapses. 11623_ Slammed into P-60 Hacker. 11625_ Mni. Grenade Launcher destroyed. 11626_ Slammed into P-60 Hacker. Map ----- +----------------------------------------------------+ | #????????????# """ ## ## # ##???????????? | | #????????????# """ ## [ #???????????? | | #????????????#! ## ##???????????? | | = #????????????############ # #????????????? | | *%= #??????????????????????####### #????????????? | | #####????????????????????????# #????????????? | | # ???????????????????????# #????????????? | | # """""??????????????????????# #????????????? | | % # """""??????????????????#####+##???????????? | | # """""??????????????????# #???????????? | | # """"""?????????????????# T #???????????? | | # """"""?????????????????# #???????????? | | + """"""?????????????????# #???????????? | | # ?????????????# #???????????? | | # ????????##### #???????????? | | # #???????# ###+##+##+#????????? | | # #???????+ #????????? | | # #???????# #????????? | | ##############???##+## #????????? | | #????############# #????????? | | #???" ! +???????? | | #?? ##### ##???????? | | #?? ! #####+##### #????????? | | #???"""""""" # # #? #????????? | | #??? p #? #????????? | | #????""""""" # @ # ===#??#????????? | | + # ###? ===#???????????? | | # """"""""" ?## #???? ===#???????????? | | # ??? ???#^#????? #???????????? | | #?####????####????# #?????? #???????????? | | #?????????????????# #???????? ! #???????????? | | ?????????????? ?????????###???????????? | | "" ?????????????? " ???????????????????????? | | "" ?????????????? ???????????????????????? | | "" #####?????????????# #???????????????????????? | | ##?????????????????? ????????????????????????? | | "" #??????????????????? ????????????????????????? | | ?" #??????????????????? ????????????????????????? | | ?? #????????????????????????????????????????????? | | ?? #????????????????????????????????????????????? | | ?????????????????????????????????????????????????? | | ?????????????????????????????????????????????????? | | ?????????????????????????????????????????????????? | | ?????????????????????????????????????????????????? | | ?????????????????????????????????????????????????? | | ?????????????????????????????????????????????????? | | ?????????????????????????????????????????????????? | | ?????????????????????????????????????????????????? | | ?????????????????????????????????????????????????? | | ?????????????????????????????????????????????????? | +----------------------------------------------------+ Best States ------------- Heat Dissipation 37 Energy Generation 32 Energy Capacity 460 Matter Stores 300 Matter Capacity 300 Sight Range 16 Robot Scan Range 15 Terrain Scan Density 10 Armor Coverage 225 Propulsion Shielding 33 Evasion (%) 50 Targeting Accuracy 8 Recoil Reduction 4 Offensive Hacking 20 Relay Coupler Types 2 Relay Coupler Value 52 Authchip Count 1 Item Schematics ----------------- None Robot Schematics ------------------ None Fabricated ------------ Nothing Repaired ---------- Nothing Studied --------- Shotgun | -9/Materials | Hacked Datajack | -9/Materials | Hacked Remote Datajack | -6/Factory | Hacked Imp. Deuterium Engine | -6/Factory | Hacked Fission Core | -6/Factory | Hacked Alien Tech Used ----------------- None Achievements -------------- Assimilation Complete Mindtrick Versatile Challenges ------------ None Game ------ Seed AlloySignalTracker Manual? 0 Play Time 00:56:02 Cumulative 70.4 hours Start 2026.02.14 @ 13:38:55 End 2026.02.14 @ 19:27:32 Sessions 4 Manual Loads 0 Difficulty Rogue Special Mode None Game No. 149 Rogue 149 Adventurer 0 Explorer 0 Win Type - Total 1 Types 1/0/0/0/0/0/0/0/0/0 Lore% 47 Gallery% 35 Achievement% 35 Wizard Run 0 Options --------- Layout 0 ASCII 0 Keyboard 1 Movement Arrows Keybinds 0 Fullscreen 1 Font 18/Smallcaps Map View 38x25 Zoom Use 76% Tactical HUD 1 Map Filters NONE Filters NONE Steam 1 RUN: 534e6233-7fae-413a-9aae-a6a76f4bfe57